[Event "Hungarian U20 Junior-ch Women 2024"]
[Site "Budapest"]
[Date "2024.03.18"]
[Round "8.4"]
[White "Karacsonyi, Luca"]
[Black "Sulyok, Eszter"]
[Result "0-1"]
[ECO "B42"]
[WhiteElo "1956"]
[BlackElo "2082"]
[Annotator "NA RC"]
[PlyCount "98"]
[EventDate "2024.03.10"]
[EventType "tourn"]
[EventCountry "HUN"]
[SourceTitle "playchess.com"]
[Source "ChessBase"]
[SourceQuality "1"]
[TimeControl "40/5400+30:1800+30"]

1. e4 {[%emt 0:00:52]} c5 {[%emt 0:00:42]} 2. Nf3 {[%emt 0:00:07]} e6 {[%emt 0:00:09]} 3. d4 {[%emt 0:00:08]} cxd4 {[%emt 0:00:23]} 4. Nxd4 {[%emt 0:00:08]} a6 {[%emt 0:02:17]} 5. Bd3 {[%emt 0:00:15]} Nc6 {[%emt 0:01:32]} 6. Nxc6 {[%emt 0:00:20]} dxc6 {[%emt 0:00:09]} 7. Bf4 {[%emt 0:00:40] B42: Sicilian: Kan Variation: 5 Bd3.} Bd6 {[%emt 0:01:25]} 8. e5 {[%emt 0:00:15]} Bc5 {[%emt 0:05:28]} 9. Qg4 {[%emt 0:15:37]} g6 {[%emt 0:27:36]} (9... g5 $16) 10. O-O {[%emt 0:08:30]} ({Better is} 10. Nd2 $18) 10... f5 {[%emt 0:06:40]} 11. exf6 {[%emt 0:03:48]} Qxf6 {[%emt 0:05:49]} (11... Nxf6 $16 12. Qh4 O-O) 12. Qg3 {[%emt 0:10:22]} Qf7 {[%emt 0:02:17]} 13. Be5 {[%emt 0:09:52]} Nf6 {[%emt 0:00:11]} 14. Nc3 {[%emt 0:10:08]} ({White should try} 14. Nd2 $18) 14... O-O {[%emt 0:07:31]} 15. Bxf6 {[%emt 0:05:38]} Qxf6 {[%emt 0:00:09]} 16. Ne4 {[%emt 0:00:51]} Qe7 {[%emt 0:00:54]} 17. Rae1 {[%emt 0:04:55]} Bb6 {[%emt 0:07:35]} 18. Ng5 {[%emt 0:04:53]} Bc7 {[%emt 0:07:42]} 19. f4 $14 {[%emt 0:00:42]} b5 {[%emt 0:03:33]} 20. Qh4 {[%emt 0:02:48]} Bd8 {[%emt 0:06:53]} 21. Kh1 {[%emt 0:03:55]} Qg7 {[%emt 0:02:22]} 22. Qg3 {[%emt 0:03:40]} Re8 {[%emt 0:04:19]} 23. Nf3 {[%emt 0:05:21]} Bf6 {[%emt 0:02:12]} 24. c3 {[%emt 0:00:49]} Bb7 {[%emt 0:00:16]} 25. Ne5 {[%emt 0:02:52]} Rad8 {[%emt 0:00:36]} 26. Be4 {[%emt 0:01:19]} c5 {[%emt 0:01:07]} 27. Bxb7 {[%emt 0:00:24]} Qxb7 {[%emt 0:00:04]} 28. Rd1 {[%emt 0:01:23]} Bg7 {[%emt 0:00:32]} 29. Qg4 {[%emt 0:01:08]} Rd5 {[%emt 0:00:39]} 30. Rfe1 {[%emt 0:01:00]} Qc7 {[%emt 0:00:53]} 31. Nf3 {[%emt 0:01:15]} Rf5 {[%emt 0:01:05]} 32. Re4 {[%emt 0:00:43]} Bh6 {[%emt 0:00:57]} 33. Ng5 {[%emt 0:01:01]} Bxg5 {[%emt 0:00:16]} 34. fxg5 {[%emt 0:00:09]} Rd8 {[%emt 0:01:07]} 35. Rxe6 {[%emt 0:00:59]} Rdf8 {[%emt 0:01:43]} 36. Ree1 {[%emt 0:00:26]} Qf7 {[%emt 0:00:07]} 37. Rg1 {[%emt 0:00:38]} Qxa2 {[%emt 0:00:19]} 38. Ra1 {[%emt 0:00:52]} Qxb2 {[%emt 0:00:31]} 39. Rxa6 {[%emt 0:00:20]} Qxc3 {[%emt 0:00:16]} 40. Qe2 {[%emt 0:00:00]} Qd4 {[%emt 0:00:00]} 41. Qxb5 {[%emt 0:05:45]} c4 {[%emt 0:01:46]} 42. Qb1 {[%emt 0:00:29]} Rxg5 {[%emt 0:17:45]} 43. Rc6 {[%emt 0:03:46]} Rgf5 {[%emt 0:01:22]} 44. Qc1 {[%emt 0:06:10]} Rf4 {[%emt 0:02:41]} 45. Rc7 {[%emt 0:03:25]} Rh4 {[%emt 0:01:52]} 46. Qe1 {[%emt 0:06:06]} Qf4 {[%emt 0:02:39]} 47. h3 {[%emt 0:02:53]} Rxh3+ {[%emt 0:01:02]} 48. gxh3 {[%emt 0:00:06]} Qxc7 {[%emt 0:00:04]} 49. Qe6+ {[%emt 0:00:43]} Qf7 {[%emt 0:00:07]} 0-1

[Event "Hungarian U20 Junior-ch Women 2024"]
[Site "Budapest"]
[Date "2024.03.18"]
[Round "8.5"]
[White "Toth, Nikoletta"]
[Black "Juhasz, Judit"]
[Result "1/2-1/2"]
[ECO "A45"]
[WhiteElo "1962"]
[BlackElo "2002"]
[Annotator "NA RC"]
[PlyCount "156"]
[EventDate "2024.03.10"]
[EventType "tourn"]
[EventCountry "HUN"]
[SourceTitle "playchess.com"]
[Source "ChessBase"]
[SourceQuality "1"]
[TimeControl "40/5400+30:1800+30"]

1. d4 {[%emt 0:00:38]} Nf6 {[%emt 0:00:51]} 2. Bf4 {[%emt 0:00:05]} b6 {[%emt 0:00:15]} 3. e3 {[%emt 0:00:36]} Bb7 {[%emt 0:00:12]} 4. Nf3 {[%emt 0:00:09]} g6 {[%emt 0:00:15]} 5. Be2 {[%emt 0:03:09]} Bg7 {[%emt 0:00:22]} 6. h3 {[%emt 0:00:43]} O-O {[%emt 0:00:16]} 7. O-O {[%emt 0:00:13]} d6 {[%emt 0:00:04]} 8. Bh2 {[%emt 0:00:47] A48: 1 d4 Nf6 2 Nf3 g6: Torre, London and Colle Systems.} Nbd7 {[%emt 0:00:21]} 9. Nbd2 {[%emt 0:03:31]} Ne4 {[%emt 0:01:02]} 10. Nxe4 {[%emt 0:07:25]} Bxe4 {[%emt 0:01:21]} 11. Nd2 {[%emt 0:00:23]} Bb7 {[%emt 0:00:05]} 12. Bf3 {[%emt 0:00:10]} Bxf3 {[%emt 0:00:32]} 13. Nxf3 {[%emt 0:00:57]} e5 {[%emt 0:00:49]} 14. c3 {[%emt 0:03:32]} Qe7 {[%emt 0:01:08]} 15. a4 {[%emt 0:04:39]} e4 {[%emt 0:01:16]} 16. Nd2 {[%emt 0:00:44]} a6 {[%emt 0:00:06]} 17. Qc2 {[%emt 0:16:33]} f5 {[%emt 0:10:03]} 18. a5 {[%emt 0:14:54]} b5 {[%emt 0:04:04]} 19. c4 {[%emt 0:03:44]} b4 {[%emt 0:02:37]} 20. Nb3 {[%emt 0:03:55]} c5 {[%emt 0:12:37]} 21. Rad1 {[%emt 0:00:12]} cxd4 {[%emt 0:03:10]} 22. Nxd4 $14 {[%emt 0:03:37]} Rfc8 {[%emt 0:14:39]} 23. Ne2 {[%emt 0:06:57]} Ne5 {[%emt 0:06:33]} 24. Qb3 {[%emt 0:02:22]} Qf7 {[%emt 0:08:23]} 25. Qxb4 {[%emt 0:06:10]} Nd3 {[%emt 0:04:13]} 26. Qxd6 {[%emt 0:02:06]} Nxb2 {[%emt 0:00:08]} 27. Rc1 {[%emt 0:03:36]} Nxc4 {[%emt 0:01:39]} 28. Qb4 {[%emt 0:00:46]} Bf8 {[%emt 0:01:17]} 29. Qa4 {[%emt 0:01:54]} Rc5 {[%emt 0:01:05]} 30. Rfd1 {[%emt 0:02:59]} Nb2 {[%emt 0:01:01]} 31. Qd4 {[%emt 0:00:41]} Nxd1 {[%emt 0:01:49]} 32. Rxc5 {[%emt 0:00:08]} Bxc5 {[%emt 0:00:06]} 33. Qxc5 {[%emt 0:00:07]} Nb2 {[%emt 0:06:58]} 34. Qc6 {[%emt 0:01:13]} Rd8 {[%emt 0:00:07]} 35. Be5 {[%emt 0:03:15]} Nd3 {[%emt 0:09:27]} 36. Bd4 {[%emt 0:01:42]} g5 {[%emt 0:06:35]} 37. Qxa6 {[%emt 0:01:57]} f4 {[%emt 0:00:02]} 38. Qf6 {[%emt 0:01:06]} Qxf6 {[%emt 0:00:22]} 39. Bxf6 {[%emt 0:00:05]} Rd5 {[%emt 0:02:08]} 40. Nc3 {[%emt 0:00:00]} Rxa5 {[%emt 0:00:00]} 41. exf4 {[%emt 0:04:38]} Ra1+ {[%emt 0:09:05]} 42. Kh2 {[%emt 0:00:11]} gxf4 {[%emt 0:02:29]} 43. Nxe4 {[%emt 0:00:25]} Ra4 {[%emt 0:00:06]} 44. f3 {[%emt 0:04:51]} Ra2 {[%emt 0:00:06]} 45. Bc3 {[%emt 0:01:37]} Rc2 {[%emt 0:01:10]} 46. h4 {[%emt 0:02:19]} h5 {[%emt 0:05:47]} 47. Bd2 {[%emt 0:02:48]} Kg7 {[%emt 0:01:06]} 48. Kh3 {[%emt 0:00:16]} Kg6 {[%emt 0:04:08]} 49. g3 {[%emt 0:02:59]} Nf2+ {[%emt 0:01:46]} 50. Nxf2 {[%emt 0:00:18]} Rxd2 {[%emt 0:00:04]} 51. Kg2 {[%emt 0:01:14]} Kf5 {[%emt 0:03:57]} 52. g4+ {[%emt 0:01:57]} Kg6 {[%emt 0:02:11]} 53. g5 {[%emt 0:00:34]} Kf5 {[%emt 0:00:16]} 54. Kg1 {[%emt 0:01:32]} Ra2 {[%emt 0:00:08]} 55. Ne4 {[%emt 0:00:37]} Ke5 {[%emt 0:03:36]} 56. Nf6 {[%emt 0:06:37]} Kd4 {[%emt 0:00:03]} 57. g6 {[%emt 0:00:58]} Ra7 {[%emt 0:04:22]} 58. Nxh5 {[%emt 0:01:19]} Ke5 {[%emt 0:00:11]} 59. Kh2 {[%emt 0:02:28]} Kf5 {[%emt 0:00:04]} 60. Kh3 {[%emt 0:00:25]} Rb7 {[%emt 0:01:08]} 61. Kh2 {[%emt 0:00:44]} Kxg6 {[%emt 0:00:39]} 62. Nxf4+ {[%emt 0:00:05]} Kf5 {[%emt 0:00:04]} 63. Ng2 {[%emt 0:00:35]} Rg7 {[%emt 0:00:42]} 64. Kg1 {[%emt 0:01:31]} Ra7 {[%emt 0:00:46]} 65. Kf2 {[%emt 0:00:30]} Ra2+ {[%emt 0:00:23]} 66. Kg3 {[%emt 0:00:07]} Ra4 {[%emt 0:00:42]} 67. Ne3+ {[%emt 0:00:32]} Ke5 {[%emt 0:00:30]} 68. h5 {[%emt 0:00:34]} Kf6 {[%emt 0:00:16]} 69. f4 {[%emt 0:00:30]} Ra3 {[%emt 0:00:22]} 70. Kf3 {[%emt 0:00:10]} Kg7 {[%emt 0:00:09]} 71. Ke4 {[%emt 0:00:26]} Kh6 {[%emt 0:00:02]} 72. Nd5 {[%emt 0:00:45]} Kxh5 {[%emt 0:00:22]} 73. Ke5 {[%emt 0:00:15]} Kg6 {[%emt 0:00:21]} 74. Ne7+ {[%emt 0:01:03]} Kf7 {[%emt 0:00:27]} 75. Nd5 {[%emt 0:00:18]} Ra1 {[%emt 0:00:34]} 76. Nc3 {[%emt 0:00:42]} Kg6 {[%emt 0:00:48]} 77. f5+ {[%emt 0:01:38]} Kf7 {[%emt 0:00:21]} 78. Ne4 {[%emt 0:00:11]} Ra5+ {[%emt 0:00:40]} 1/2-1/2

[Event "Hungarian U20 Junior-ch Women 2024"]
[Site "Budapest"]
[Date "2024.03.19"]
[Round "9.2"]
[White "Sulyok, Eszter"]
[Black "Toth, Nikoletta"]
[Result "1-0"]
[ECO "A06"]
[WhiteElo "2082"]
[BlackElo "1962"]
[Annotator "RC"]
[PlyCount "81"]
[EventDate "2024.03.10"]
[EventType "tourn"]
[EventCountry "HUN"]
[SourceTitle "playchess.com"]
[Source "ChessBase"]
[SourceQuality "1"]
[TimeControl "40/5400+30:1800+30"]

1. Nf3 {[%emt 0:02:11]} d5 {[%emt 0:01:00]} 2. g3 {[%emt 0:00:09]} Nf6 {[%emt 0:00:18]} 3. Bg2 {[%emt 0:00:07]} Bg4 {[%emt 0:00:42]} 4. h3 {[%emt 0:00:28]} Bxf3 {[%emt 0:03:53]} 5. Bxf3 {[%emt 0:00:13]} c6 {[%emt 0:04:52]} 6. d3 {[%emt 0:03:36]} e6 {[%emt 0:01:26]} 7. Nd2 {[%emt 0:00:55]} Be7 {[%emt 0:01:15]} 8. O-O {[%emt 0:01:21]} Nbd7 {[%emt 0:01:59]} 9. e4 {[%emt 0:02:23]} O-O {[%emt 0:01:38]} 10. Bg2 {[%emt 0:04:31]} dxe4 {[%emt 0:11:06]} 11. dxe4 {[%emt 0:00:21]} Nc5 {[%emt 0:07:28]} 12. Qe2 {[%emt 0:01:39]} Qc7 {[%emt 0:04:33]} 13. a4 {[%emt 0:01:40]} a5 {[%emt 0:02:04]} 14. f4 {[%emt 0:05:47]} Rfd8 {[%emt 0:04:30]} 15. b3 {[%emt 0:02:29]} Rab8 {[%emt 0:04:16]} 16. Bb2 {[%emt 0:07:45]} Nfd7 {[%emt 0:00:38]} 17. Nc4 {[%emt 0:01:26]} Bf6 {[%emt 0:01:46]} 18. e5 {[%emt 0:00:57]} Be7 {[%emt 0:00:08]} 19. Bc3 {[%emt 0:01:14]} b6 {[%emt 0:02:00]} 20. g4 {[%emt 0:05:01]} Nb7 {[%emt 0:09:00]} 21. Qf3 {[%emt 0:08:08]} Bb4 {[%emt 0:07:36]} 22. Bxb4 {[%emt 0:01:55]} axb4 {[%emt 0:00:04]} 23. Qxc6 {[%emt 0:14:15]} Qxc6 {[%emt 0:00:08]} 24. Bxc6 {[%emt 0:00:03]} Na5 {[%emt 0:00:09]} 25. Bb5 {[%emt 0:00:14]} Nxc4 {[%emt 0:04:01]} 26. Bxc4 {[%emt 0:01:32]} Nc5 {[%emt 0:01:37]} 27. Rad1 {[%emt 0:01:01]} Kf8 {[%emt 0:01:21]} 28. f5 {[%emt 0:00:56]} Ke7 {[%emt 0:03:21]} 29. Kf2 {[%emt 0:04:42]} Ne4+ {[%emt 0:05:57]} 30. Ke3 {[%emt 0:01:57]} Nc3 {[%emt 0:02:47]} 31. Rd3 {[%emt 0:02:41]} Rxd3+ {[%emt 0:01:41]} 32. cxd3 {[%emt 0:01:23]} b5 {[%emt 0:06:42]} 33. axb5 {[%emt 0:00:27]} Nxb5 {[%emt 0:01:05]} 34. Bxb5 {[%emt 0:05:08]} Rxb5 {[%emt 0:00:04]} 35. d4 {[%emt 0:00:51]} g6 {[%emt 0:04:08]} 36. Kd3 {[%emt 0:02:46]} gxf5 {[%emt 0:02:10]} 37. gxf5 {[%emt 0:00:07]} f6 {[%emt 0:00:41]} 38. Kc4 {[%emt 0:00:32]} Rb6 {[%emt 0:00:35]} 39. fxe6 {[%emt 0:02:58]} fxe5 {[%emt 0:00:19]} 40. d5 {[%emt 0:00:00]} Rb8 {[%emt 0:00:00]} 41. Rf7+ {[%emt 0:00:36]} 1-0

[Event "Hungarian U20 Junior-ch Women 2024"]
[Site "Budapest"]
[Date "2024.03.19"]
[Round "9.3"]
[White "Kiraly, Lilla Virag"]
[Black "Karacsonyi, Luca"]
[Result "0-1"]
[ECO "C47"]
[WhiteElo "1923"]
[BlackElo "1956"]
[Annotator "RC"]
[PlyCount "82"]
[EventDate "2024.03.10"]
[EventType "tourn"]
[EventCountry "HUN"]
[SourceTitle "playchess.com"]
[Source "ChessBase"]
[SourceQuality "1"]
[TimeControl "40/5400+30:1800+30"]

1. e4 {[%emt 0:00:49]} e5 {[%emt 0:00:38]} 2. Nf3 {[%emt 0:00:28]} Nc6 {[%emt 0:00:07]} 3. Nc3 {[%emt 0:00:17]} Nf6 {[%emt 0:02:50]} 4. d4 {[%emt 0:00:41]} exd4 {[%emt 0:01:12]} 5. Nxd4 {[%emt 0:00:33]} Bb4 {[%emt 0:09:33]} 6. Nxc6 {[%emt 0:01:21]} bxc6 {[%emt 0:05:08]} 7. Bd3 {[%emt 0:01:37]} O-O {[%emt 0:02:20]} 8. O-O {[%emt 0:02:22]} Re8 {[%emt 0:03:16]} 9. Bg5 {[%emt 0:16:15]} h6 {[%emt 0:03:35]} 10. Bh4 {[%emt 0:04:16]} d5 {[%emt 0:10:28]} 11. exd5 {[%emt 0:04:11]} Bxc3 {[%emt 0:00:24]} 12. bxc3 {[%emt 0:02:04]} cxd5 {[%emt 0:02:36]} 13. Bb5 {[%emt 0:14:33]} Re6 {[%emt 0:06:14]} 14. Qd4 {[%emt 0:23:46]} c6 {[%emt 0:09:25]} 15. Bd3 {[%emt 0:02:39]} Qe7 {[%emt 0:10:09]} 16. Rab1 {[%emt 0:06:31]} g5 {[%emt 0:04:03]} 17. Bg3 {[%emt 0:00:43]} c5 {[%emt 0:00:21]} 18. Qa4 {[%emt 0:07:16]} c4 {[%emt 0:01:11]} 19. Be2 {[%emt 0:03:22]} Rxe2 {[%emt 0:01:09]} 20. Qc6 {[%emt 0:00:40]} Bb7 {[%emt 0:07:11]} 21. Rxb7 {[%emt 0:00:26]} Qe6 {[%emt 0:02:05]} 22. Qxe6 {[%emt 0:02:26]} fxe6 {[%emt 0:01:53]} 23. f3 {[%emt 0:02:47]} a5 {[%emt 0:02:59]} 24. Rc1 {[%emt 0:00:38]} a4 {[%emt 0:01:12]} 25. Kf1 {[%emt 0:01:36]} Re3 {[%emt 0:01:09]} 26. Kf2 {[%emt 0:00:19]} d4 {[%emt 0:01:18]} 27. cxd4 {[%emt 0:00:17]} Ra3 {[%emt 0:01:30]} 28. Rc7 {[%emt 0:00:49]} Rxa2 {[%emt 0:01:11]} 29. Rxc4 {[%emt 0:00:10]} Rb2 {[%emt 0:00:44]} 30. Rc6 {[%emt 0:00:50]} a3 {[%emt 0:03:15]} 31. Rxe6 {[%emt 0:00:16]} a2 {[%emt 0:01:04]} 32. Ree1 {[%emt 0:00:13]} Nd5 {[%emt 0:00:42]} 33. Be5 {[%emt 0:00:17]} Nb4 {[%emt 0:00:51]} 34. Kg3 {[%emt 0:01:17]} Nxc2 {[%emt 0:00:50]} 35. d5 {[%emt 0:00:39]} Nxe1 {[%emt 0:00:21]} 36. Rxe1 {[%emt 0:00:28]} Rb1 {[%emt 0:00:36]} 37. Re4 {[%emt 0:00:22]} a1=Q {[%emt 0:00:22]} 38. Bxa1 {[%emt 0:00:17]} Rbxa1 {[%emt 0:00:05]} 39. Rd4 {[%emt 0:00:17]} Rd8 {[%emt 0:00:07]} 40. Kg4 {[%emt 0:00:00]} Ra6 {[%emt 0:00:00]} 41. Kf5 {[%emt 0:03:28]} Kf7 {[%emt 0:01:08]} 0-1

[Event "Hungarian U20 Junior-ch Women 2024"]
[Site "Budapest"]
[Date "2024.03.19"]
[Round "9.5"]
[White "Nandin-Erdene, Davaademberel"]
[Black "Szarvas, Nora"]
[Result "1-0"]
[ECO "B32"]
[WhiteElo "1978"]
[BlackElo "1955"]
[Annotator "RC"]
[PlyCount "81"]
[EventDate "2024.03.10"]
[EventType "tourn"]
[EventCountry "HUN"]
[SourceTitle "playchess.com"]
[Source "ChessBase"]
[SourceQuality "1"]
[TimeControl "40/5400+30:1800+30"]

1. e4 {[%emt 0:00:34]} c5 {[%emt 0:00:48]} 2. Nf3 {[%emt 0:00:08]} Nc6 {[%emt 0:00:07]} 3. d4 {[%emt 0:00:07]} cxd4 {[%emt 0:00:05]} 4. Nxd4 {[%emt 0:00:04]} d5 {[%emt 0:00:29]} 5. Nxc6 {[%emt 0:02:15]} bxc6 {[%emt 0:00:09]} 6. exd5 {[%emt 0:00:46]} Qxd5 {[%emt 0:00:11]} 7. Nc3 {[%emt 0:03:07]} Qxd1+ {[%emt 0:00:22]} 8. Nxd1 {[%emt 0:00:12]} e5 {[%emt 0:01:41]} 9. Bd2 {[%emt 0:01:35]} f5 {[%emt 0:01:28]} 10. Ne3 {[%emt 0:03:32]} Bd6 {[%emt 0:06:55]} 11. Nc4 {[%emt 0:01:14]} Ke7 {[%emt 0:02:34]} 12. Bc3 {[%emt 0:07:29]} Nf6 {[%emt 0:08:07]} 13. O-O-O {[%emt 0:05:18]} Bc7 {[%emt 0:17:12]} 14. Nxe5 {[%emt 0:03:18]} Bxe5 {[%emt 0:05:04]} 15. Bxe5 {[%emt 0:00:06]} Be6 {[%emt 0:00:38]} 16. Ba6 {[%emt 0:05:36]} Rad8 {[%emt 0:04:25]} 17. Bd4 {[%emt 0:12:51]} Kf7 {[%emt 0:06:07]} 18. f3 {[%emt 0:05:57]} Rhe8 {[%emt 0:03:20]} 19. b3 {[%emt 0:07:22]} Rd7 {[%emt 0:03:19]} 20. Bc5 {[%emt 0:03:44]} Rc7 {[%emt 0:05:36]} 21. Rhe1 {[%emt 0:02:04]} Nd5 {[%emt 0:06:06]} 22. Kb2 {[%emt 0:01:59]} Nb6 {[%emt 0:05:08]} 23. Rd4 {[%emt 0:07:04]} Bc8 {[%emt 0:03:58]} 24. Rxe8 {[%emt 0:00:57]} Kxe8 {[%emt 0:00:06]} 25. Bxc8 {[%emt 0:03:00]} Nxc8 {[%emt 0:02:31]} 26. Rb4 {[%emt 0:01:44]} Kd7 {[%emt 0:02:33]} 27. Rh4 {[%emt 0:02:09]} h6 {[%emt 0:00:34]} 28. Rd4+ {[%emt 0:00:44]} Ke6 {[%emt 0:00:23]} 29. Rd8 {[%emt 0:01:04]} Ne7 {[%emt 0:01:47]} 30. Re8 {[%emt 0:01:29]} h5 {[%emt 0:02:00]} 31. Rxe7+ {[%emt 0:01:14]} Rxe7 {[%emt 0:00:05]} 32. Bxe7 {[%emt 0:00:04]} Kxe7 {[%emt 0:00:04]} 33. Kc3 {[%emt 0:00:34]} c5 {[%emt 0:02:17]} 34. Kc4 {[%emt 0:00:34]} Kd6 {[%emt 0:00:06]} 35. Kb5 {[%emt 0:01:54]} g5 {[%emt 0:00:25]} 36. a4 {[%emt 0:02:39]} Kd5 {[%emt 0:01:57]} 37. a5 {[%emt 0:05:48]} f4 {[%emt 0:00:47]} 38. Ka6 {[%emt 0:01:37]} Kc6 {[%emt 0:01:00]} 39. Kxa7 {[%emt 0:00:07]} Kc7 {[%emt 0:00:05]} 40. c3 {[%emt 0:00:00]} h4 {[%emt 0:00:00]} 41. h3 {[%emt 0:00:32]} 1-0